Workbook

Sheet HOME
B2: Maximum Ingredient Optimization Workbook
I3: "MIOW"
I4: Verson 1.0
B6: A workbook to determine the maximum safe level of feed ingredients
C9: Dmitry V. Vedenov | J9: Gene M. Pesti | P9: Rashed A. Alhotan
C10: Department of Agricultural Economics | J10: Department of Poultry Science | P10: Department of Poultry Science
C11: Texas A&M University | J11: The University of Georgia | P11: The University of Georgia
C12: College Station, TX 77843 | J12: Athens, Georgia 30602 | P12: Athens, Georgia 30602
C13: vedenov@tamu.edu | J13: gpesti@uga.edu | P13: ralhota1@uga.edu

Sheet Instructions
B2: Instructions
B3: 1. Make changes in cells C5:C6 and C8:C9
B4: 2. Press "Create Grid" button
B5: 3. If you want to adjust levels, edit directly in corresponding cells
B6: 4. Select baseline model which will be used to generate random data
B7: 5. Enter "true" coefficients of the baseline mode
B8: 6. Provide guesses for coefficients for all remaining models (this is necessary to ensure convergence of Solver Routine)
B9: 6. Select simulation parameters (number of "experiments" and coefficient of variation for random draws)
B10: 7. Press "Run Simulations"
B12: Note: If you end up with poor estimates for a particular model, try to provide more accurate initial guesses for the coefficients

Sheet Levels & Reps
H2: Experimental Grid
B3: 1. Experiment Design
B5: Number of Levels (>1, < 25) | C5: 5
B6: Number of Reps (max = 20) | C6: 16
B8: Minimum Ingredient Level | C8: 0
B9: Maximum Ingredient Level | C9: 21
F10: Levels
F11: 1 | G11: 2 | H11: 3 | I11: 4 | J11: 5
D12: Replicates | E12: 1 | F12: 0 | G12: 5.25 | H12: 10.5 | I12: 15.75 | J12: 21
E13: 2 | F13: 0 | G13: 5.25 | H13: 10.5 | I13: 15.75 | J13: 21
E14: 3 | F14: 0 | G14: 5.25 | H14: 10.5 | I14: 15.75 | J14: 21
E15: 4 | F15: 0 | G15: 5.25 | H15: 10.5 | I15: 15.75 | J15: 21
E16: 5 | F16: 0 | G16: 5.25 | H16: 10.5 | I16: 15.75 | J16: 21
E17: 6 | F17: 0 | G17: 5.25 | H17: 10.5 | I17: 15.75 | J17: 21
E18: 7 | F18: 0 | G18: 5.25 | H18: 10.5 | I18: 15.75 | J18: 21
E19: 8 | F19: 0 | G19: 5.25 | H19: 10.5 | I19: 15.75 | J19: 21
E20: 9 | F20: 0 | G20: 5.25 | H20: 10.5 | I20: 15.75 | J20: 21
E21: 10 | F21: 0 | G21: 5.25 | H21: 10.5 | I21: 15.75 | J21: 21
E22: 11 | F22: 0 | G22: 5.25 | H22: 10.5 | I22: 15.75 | J22: 21
E23: 12 | F23: 0 | G23: 5.25 | H23: 10.5 | I23: 15.75 | J23: 21
E24: 13 | F24: 0 | G24: 5.25 | H24: 10.5 | I24: 15.75 | J24: 21
E25: 14 | F25: 0 | G25: 5.25 | H25: 10.5 | I25: 15.75 | J25: 21
E26: 15 | F26: 0 | G26: 5.25 | H26: 10.5 | I26: 15.75 | J26: 21
E27: 16 | F27: 0 | G27: 5.25 | H27: 10.5 | I27: 15.75 | J27: 21

Sheet Simulations
C3: 2. Choose One Model to Simulate Experiments From | K3: 4. Choose Simulation Parameters
C5: Model | D5: True Parameters of the Response Function | K5: Selected ("True") Model | O5: BLQ
D6: Max | E6: Rate Constant | F6: Ingredient Level | K6: Number of Experiments (Max = 1000) | O6: 100
D7: 56.1 | E7: -18.82838406 | F7: 6 | K7: Coefficient of variation | O7: 0.05
D8: Max | E8: Rate Constant | F8: Ingredient Level
D9: 0.642 | E9: -1.74 | F9: 16
D10: Const | E10: Linear | F10: Quadratic
D11: 2.1821 | E11: 0.0016 | F11: -3e-05
C17: 3. Select up to Three Models to Fit to Simulated Experiments
C19: Model | D19: Initial Guesses for the Parameters of Fitted Functions
D20: Max | E20: Rate Constant | F20: Ingredient Level
D21: 0.642 | E21: -18.82838406 | F21: 16
D22: Max | E22: Rate Constant | F22: Ingredient Level
D23: 0.642 | E23: -1.74 | F23: 16
D24: Const | E24: Linear | F24: Quadratic
D25: 2.0122 | E25: 0.0624 | F25: -0.0023
C32: 5. Results
C34: Experiment # | D34: Model Fits
D35: Broken Line Model | J35: Broken Line Quadratic Model | P35: Quadratic (2nd Order Polynomial)
D36: Max/Min | E36: Rate Constant | F36: Maximum Safe Level | G36: R-Squared | H36: SE of Requirement | J36: Max/Min | K36: Rate Constant | L36: Maximum Safe Level | M36: R-Squared | N36: SE of Requirement | P36: Const | Q36: Linear | R36: Square | S36: Max. Safe Level (Calculated) | T36: R-Squared
C37: Average | D37: =IF(OR(ISBLANK(D$41),ISNA(D$41),D$41="N/A"),"N/A",AVERAGE(D$41:D$1040)) -> 0.6424017901 | E37: =IF(OR(ISBLANK(E$41),ISNA(E$41),E$41="N/A"),"N/A",AVERAGE(E$41:E$1040)) -> -14.15305487 | F37: 17.93010673 | G37: 0.9969796394 | J37: =IF(OR(ISBLANK(J$41),ISNA(J$41),J$41="N/A"),"N/A",AVERAGE(J$41:J$1040)) -> 0.6427583832 | K37: -1.729886669 | L37: 15.99021053 | M37: 0.9969796423 | P37: =IF(OR(ISBLANK(P$41),ISNA(P$41),P$41="N/A"),"N/A",AVERAGE(P$41:P$1040)) -> N/A | Q37: N/A | R37: N/A | S37: N/A | T37: N/A
C38: Std. Dev. | D38: =IF(OR(ISBLANK(D$41),ISNA(D$41),D$41="N/A"),"N/A",STDEV(D$41:D$1040)) -> 0.003998253496 | E38: =IF(OR(ISBLANK(E$41),ISNA(E$41),E$41="N/A"),"N/A",STDEV(E$41:E$1040)) -> 0.4951695699 | F38: 0.06858233235 | G38: 0.001227360949 | J38: =IF(OR(ISBLANK(J$41),ISNA(J$41),J$41="N/A"),"N/A",STDEV(J$41:J$1040)) -> 0.004050049951 | K38: 0.02149381456 | L38: 0.03173731945 | M38: 0.001227362212 | P38: =IF(OR(ISBLANK(P$41),ISNA(P$41),P$41="N/A"),"N/A",STDEV(P$41:P$1040)) -> N/A | Q38: N/A | R38: N/A | S38: N/A | T38: N/A
C39: Lower 95% | D39: =IF(OR(ISBLANK(D$41),ISNA(D$41),D$41="N/A"),"N/A",D$37-_xlfn.CONFIDENCE.NORM(0.05,D$38,COUNTA(D$41:D$1040))) -> 0.6416181469 | E39: =IF(OR(ISBLANK(E$41),ISNA(E$41),E$41="N/A"),"N/A",E$37-_xlfn.CONFIDENCE.NORM(0.05,E$38,COUNTA(E$41:E$1040))) -> -14.25010632 | F39: 17.91666484 | G39: 0.9967390811 | J39: =IF(OR(ISBLANK(J$41),ISNA(J$41),J$41="N/A"),"N/A",J$37-_xlfn.CONFIDENCE.NORM(0.05,J$38,COUNTA(J$41:J$1040))) -> 0.641964588 | K39: -1.734099379 | L39: 15.98399013 | M39: 0.9967390837 | P39: =IF(OR(ISBLANK(P$41),ISNA(P$41),P$41="N/A"),"N/A",P$37-_xlfn.CONFIDENCE.NORM(0.05,P$38,COUNTA(P$41:P$1040))) -> N/A | Q39: N/A | R39: N/A | S39: N/A | T39: N/A
C40: Upper 95% | D40: =IF(OR(ISBLANK(D$41),ISNA(D$41),D$41="N/A"),"N/A",D$37+_xlfn.CONFIDENCE.NORM(0.05,D$38,COUNTA(D$41:D$1040))) -> 0.6431854334 | E40: =IF(OR(ISBLANK(E$41),ISNA(E$41),E$41="N/A"),"N/A",E$37+_xlfn.CONFIDENCE.NORM(0.05,E$38,COUNTA(E$41:E$1040))) -> -14.05600342 | F40: 17.94354862 | G40: 0.9972201978 | J40: =IF(OR(ISBLANK(J$41),ISNA(J$41),J$41="N/A"),"N/A",J$37+_xlfn.CONFIDENCE.NORM(0.05,J$38,COUNTA(J$41:J$1040))) -> 0.6435521784 | K40: -1.725673958 | L40: 15.99643093 | M40: 0.9972202008 | P40: =IF(OR(ISBLANK(P$41),ISNA(P$41),P$41="N/A"),"N/A",P$37+_xlfn.CONFIDENCE.NORM(0.05,P$38,COUNTA(P$41:P$1040))) -> N/A | Q40: N/A | R40: N/A | S40: N/A | T40: N/A
C41: 1 | D41: 0.6439972489 | E41: -13.96226236 | F41: 17.89841557 | G41: 0.997990557 | H41: 489178.6647 | J41: 0.6439900706 | K41: -1.73450722 | L41: 16.00332159 | M41: 0.997990557 | N41: 396564.3073 | P41: N/A | Q41: N/A | R41: N/A | S41: N/A | T41: N/A
C42: 2 | D42: 0.6357842173 | E42: -13.60973946 | F42: 17.86048287 | G42: 0.9973996335 | H42: 844493.0081 | J42: 0.6357813852 | K42: -1.718878864 | L42: 16.01421341 | M42: 0.9973996335 | N42: 690137.07 | P42: N/A | Q42: N/A | R42: N/A | S42: N/A | T42: N/A
C43: 3 | D43: 0.6434622312 | E43: -13.93483575 | F43: 17.89512647 | G43: 0.9973006994 | H43: 1005106.87 | J43: 0.6433969611 | K43: -1.733432188 | L43: 16.0040392 | M43: 0.9973006994 | P43: N/A | Q43: N/A | R43: N/A | S43: N/A | T43: N/A
C44: 4 | D44: 0.6407014722 | E44: -14.64242698 | F44: 17.99793932 | G44: 0.9963767431 | J44: 0.6407572549 | K44: -1.744064959 | L44: 15.97964026 | M44: 0.9963767423 | N44: 4.410991392 | P44: N/A | Q44: N/A | R44: N/A | S44: N/A | T44: N/A
C45: 5 | D45: 0.6428694755 | E45: -14.41482375 | F45: 17.96121718 | G45: 0.997480702 | J45: 0.6428648247 | K45: -1.747053167 | L45: 15.99273123 | M45: 0.9974807015 | N45: 10.21640223 | P45: N/A | Q45: N/A | R45: N/A | S45: N/A | T45: N/A
C46: 6 | D46: 0.6393329706 | E46: -14.12429863 | F46: 17.91965447 | G46: 0.9984928972 | J46: 0.6393217824 | K46: -1.739972001 | L46: 15.99952065 | M46: 0.9984928972 | N46: 119.2747087 | P46: N/A | Q46: N/A | R46: N/A | S46: N/A | T46: N/A
C47: 7 | D47: 0.6411939633 | E47: -14.10830988 | F47: 17.91735402 | G47: 0.9945704336 | H47: 2391778.549 | J47: 0.6411830081 | K47: -1.739515602 | L47: 15.9998301 | M47: 0.9945704336 | N47: 639.8893043 | P47: N/A | Q47: N/A | R47: N/A | S47: N/A | T47: N/A
C48: 8 | D48: 0.6431129774 | E48: -13.77923825 | F48: 17.87724862 | G48: 0.9979909815 | H48: 1058127.122 | J48: 0.643112149 | K48: -1.727037373 | L48: 16.00850818 | M48: 0.9979909815 | N48: 1487202.1 | P48: N/A | Q48: N/A | R48: N/A | S48: N/A | T48: N/A
C49: 9 | D49: 0.6400460966 | E49: -14.19397706 | F49: 17.92912948 | G49: 0.9985387509 | H49: 515399.014 | J49: 0.6423299199 | K49: -1.690831057 | L49: 15.92273989 | M49: 0.998538767 | N49: 0.7627104858 | P49: N/A | Q49: N/A | R49: N/A | S49: N/A | T49: N/A
C50: 10 | D50: 0.6420300579 | E50: -13.75280345 | F50: 17.8744707 | G50: 0.9957657943 | H50: 1042973.903 | J50: 0.6420286607 | K50: -1.725762837 | L50: 16.00944645 | M50: 0.9957657857 | N50: 651503.4639 | P50: N/A | Q50: N/A | R50: N/A | S50: N/A | T50: N/A
C51: 11 | D51: 0.6383009719 | E51: -14.01718148 | F51: 17.90572048 | G51: 0.9970023008 | J51: 0.6382923538 | K51: -1.736336796 | L51: 16.00205444 | M51: 0.9970023008 | N51: 1016775.579 | P51: N/A | Q51: N/A | R51: N/A | S51: N/A | T51: N/A
C52: 12 | D52: 0.6423643491 | E52: -14.17675838 | F52: 17.92653384 | G52: 0.997157891 | H52: 3346605.157 | J52: 0.6423405197 | K52: -1.741716102 | L52: 15.99834761 | M52: 0.9971578909 | N52: 47.5811137 | P52: N/A | Q52: N/A | R52: N/A | S52: N/A | T52: N/A
C53: 13 | D53: 0.6523523081 | E53: -13.94769957 | F53: 17.89601817 | G53: 0.9977368526 | J53: 0.652348742 | K53: -1.734193704 | L53: 16.00354574 | M53: 0.9977368526 | P53: N/A | Q53: N/A | R53: N/A | S53: N/A | T53: N/A
C54: 14 | D54: 0.6371400406 | E54: -13.80368505 | F54: 17.88031856 | G54: 0.9968018204 | J54: 0.6371379416 | K54: -1.727958815 | L54: 16.00787066 | M54: 0.9968018204 | N54: 1329272.364 | P54: N/A | Q54: N/A | R54: N/A | S54: N/A | T54: N/A
C55: 15 | D55: 0.6430398886 | E55: -14.96918399 | F55: 18.05069849 | G55: 0.9979497932 | J55: 0.6432455475 | K55: -1.750108922 | L55: 15.97742467 | M55: 0.99794979 | N55: 2.994023405 | P55: N/A | Q55: N/A | R55: N/A | S55: N/A | T55: N/A
C56: 16 | D56: 0.640295353 | E56: -13.7513139 | F56: 17.8744191 | G56: 0.9967296455 | H56: 793450.5931 | J56: 0.640295157 | K56: -1.725729793 | L56: 16.00941987 | M56: 0.9967296455 | P56: N/A | Q56: N/A | R56: N/A | S56: N/A | T56: N/A
C57: 17 | D57: 0.645210249 | E57: -14.68114069 | F57: 18.00389019 | G57: 0.996685145 | H57: 1321265.802 | J57: 0.6481726534 | K57: -1.700357025 | L57: 15.91368783 | M57: 0.9966851926 | N57: 1.034654096 | P57: N/A | Q57: N/A | R57: N/A | S57: N/A | T57: N/A
C58: 18 | D58: 0.6418063477 | E58: -14.30171692 | F58: 17.94435046 | G58: 0.9981284059 | J58: 0.641792723 | K58: -1.745313564 | L58: 15.99610015 | M58: 0.9981284059 | N58: 16.37415629 | P58: N/A | Q58: N/A | R58: N/A | S58: N/A | T58: N/A
C59: 19 | D59: 0.6470893653 | E59: -14.02860593 | F59: 17.90648117 | G59: 0.9964560412 | H59: 4019060.415 | J59: 0.6470801584 | K59: -1.737009891 | L59: 16.00158651 | M59: 0.9964560412 | P59: N/A | Q59: N/A | R59: N/A | S59: N/A | T59: N/A
C60: 20 | D60: 0.6423930891 | E60: -14.15493627 | F60: 17.92353823 | G60: 0.9978016 | J60: 0.6423799389 | K60: -1.741042443 | L60: 15.99879544 | M60: 0.9978016 | N60: 57.37131783 | P60: N/A | Q60: N/A | R60: N/A | S60: N/A | T60: N/A
C61: 21 | D61: 0.6433200046 | E61: -14.38855197 | F61: 17.95715439 | G61: 0.9970031908 | H61: 852155.4407 | J61: 0.6445527267 | K61: -1.710957908 | L61: 15.94148856 | M61: 0.9970031967 | N61: 1.427491993 | P61: N/A | Q61: N/A | R61: N/A | S61: N/A | T61: N/A
C62: 22 | D62: 0.6428693724 | E62: -13.7817751 | F62: 17.87754026 | G62: 0.9968776721 | H62: 1210967.143 | J62: 0.6428684601 | K62: -1.72714098 | L62: 16.0084316 | M62: 0.9968776721 | N62: 875193.9752 | P62: N/A | Q62: N/A | R62: N/A | S62: N/A | T62: N/A
C63: 23 | D63: 0.6408640447 | E63: -14.23906194 | F63: 17.93539895 | G63: 0.9969201252 | H63: 580983.7683 | J63: 0.6408534385 | K63: -1.743452049 | L63: 15.99709578 | M63: 0.9969201251 | N63: 28.20607696 | P63: N/A | Q63: N/A | R63: N/A | S63: N/A | T63: N/A
C64: 24 | D64: 0.644049891 | E64: -13.96011207 | F64: 17.8981475 | G64: 0.9985139281 | J64: 0.6440429293 | K64: -1.734428278 | L64: 16.00337669 | M64: 0.9985139281 | P64: N/A | Q64: N/A | R64: N/A | S64: N/A | T64: N/A
C65: 25 | D65: 0.6415160664 | E65: -14.04535561 | F65: 17.90907256 | G65: 0.9962208395 | H65: 2908140.923 | J65: 0.6415069798 | K65: -1.737418411 | L65: 16.00128658 | M65: 0.9962208395 | P65: N/A | Q65: N/A | R65: N/A | S65: N/A | T65: N/A
C66: 26 | D66: 0.6433333985 | E66: -14.87554138 | F66: 18.03702339 | G66: 0.99790035 | H66: 604754.5944 | J66: 0.6442020895 | K66: -1.731802703 | L66: 15.95506772 | M66: 0.9979003559 | N66: 1.542725258 | P66: N/A | Q66: N/A | R66: N/A | S66: N/A | T66: N/A
C67: 27 | D67: 0.6453530485 | E67: -14.77735335 | F67: 18.02015312 | G67: 0.9967955782 | J67: 0.645435724 | K67: -1.751723455 | L67: 15.98624791 | M67: 0.9967955742 | N67: 6.115887344 | P67: N/A | Q67: N/A | R67: N/A | S67: N/A | T67: N/A
C68: 28 | D68: 0.6405067641 | E68: -13.92617646 | F68: 17.89428328 | G68: 0.9957100085 | H68: 1621153.57 | J68: 0.6404845151 | K68: -1.733044443 | L68: 16.00435475 | M68: 0.9957100085 | P68: N/A | Q68: N/A | R68: N/A | S68: N/A | T68: N/A
C69: 29 | D69: 0.639025071 | E69: -13.68269557 | F69: 17.86733838 | G69: 0.9954719054 | H69: 817738.3616 | J69: 0.6390241246 | K69: -1.722544563 | L69: 16.01164514 | M69: 0.9954719054 | N69: 1282878.747 | P69: N/A | Q69: N/A | R69: N/A | S69: N/A | T69: N/A
C70: 30 | D70: 0.6486665031 | E70: -14.4352009 | F70: 17.96374613 | G70: 0.9977368767 | J70: 0.6518607506 | K70: -1.692765673 | L70: 15.91141199 | M70: 0.9977369219 | N70: 0.8336101027 | P70: N/A | Q70: N/A | R70: N/A | S70: N/A | T70: N/A
C71: 31 | D71: 0.6429813525 | E71: -15.225521 | F71: 18.08715016 | G71: 0.9971783381 | H71: 1091532.7 | J71: 0.643535938 | K71: -1.748602365 | L71: 15.96380785 | M71: 0.9971783396 | N71: 2.209614064 | P71: N/A | Q71: N/A | R71: N/A | S71: N/A | T71: N/A
C72: 32 | D72: 0.6427148849 | E72: -14.87165109 | F72: 18.03650066 | G72: 0.9966587718 | H72: 795261.5807 | J72: 0.6428537077 | K72: -1.748825733 | L72: 15.97993685 | M72: 0.9966587688 | N72: 4.297087715 | P72: N/A | Q72: N/A | R72: N/A | S72: N/A | T72: N/A
C73: 33 | D73: 0.6436567637 | E73: -15.09627017 | F73: 18.06889935 | G73: 0.9971191695 | H73: 1944331.32 | J73: 0.6438296256 | K73: -1.75460241 | L73: 15.97818518 | M73: 0.9971191646 | N73: 3.672665118 | P73: N/A | Q73: N/A | R73: N/A | S73: N/A | T73: N/A
C74: 34 | D74: 0.6377491365 | E74: -14.93773919 | F74: 18.04654481 | G74: 0.9975323715 | J74: 0.6407536435 | K74: -1.705815857 | L74: 15.91424044 | M74: 0.9975324191 | N74: 0.8977719225 | P74: N/A | Q74: N/A | R74: N/A | S74: N/A | T74: N/A
C75: 35 | D75: 0.6332281847 | E75: -14.48444767 | F75: 17.973114 | G75: 0.9966077857 | J75: 0.6333926838 | K75: -1.738642571 | L75: 15.97837893 | M75: 0.9966077861 | N75: 4.021605065 | P75: N/A | Q75: N/A | R75: N/A | S75: N/A | T75: N/A
C76: 36 | D76: 0.6381035775 | E76: -13.77523826 | F76: 17.87713062 | G76: 0.9985869762 | J76: 0.6381028388 | K76: -1.726744186 | L76: 16.0087147 | M76: 0.9985869762 | N76: 427719.6914 | P76: N/A | Q76: N/A | R76: N/A | S76: N/A | T76: N/A
C77: 37 | D77: 0.6462619646 | E77: -15.05087721 | F77: 18.06221841 | G77: 0.9972788551 | J77: 0.6464179784 | K77: -1.754712422 | L77: 15.98018736 | M77: 0.9972788497 | N77: 3.925128307 | P77: N/A | Q77: N/A | R77: N/A | S77: N/A | T77: N/A
C78: 38 | D78: 0.6436903893 | E78: -14.41380529 | F78: 17.96097435 | G78: 0.997504966 | J78: 0.6436772318 | K78: -1.747796516 | L78: 15.99377351 | M78: 0.9975049654 | N78: 11.86143911 | P78: N/A | Q78: N/A | R78: N/A | S78: N/A | T78: N/A
C79: 39 | D79: 0.6520585364 | E79: -13.95824022 | F79: 17.89732284 | G79: 0.998344748 | H79: 2847046.828 | J79: 0.6520520114 | K79: -1.734585658 | L79: 16.00327414 | M79: 0.998344748 | P79: N/A | Q79: N/A | R79: N/A | S79: N/A | T79: N/A
C80: 40 | D80: 0.642315261 | E80: -14.81979259 | F80: 18.02779863 | G80: 0.9968662178 | H80: 742247.16 | J80: 0.6424408043 | K80: -1.747530188 | L80: 15.9794841 | M80: 0.9968662154 | N80: 4.070393336 | P80: N/A | Q80: N/A | R80: N/A | S80: N/A | T80: N/A
C81: 41 | D81: 0.640297203 | E81: -13.43447332 | F81: 17.8455656 | G81: 0.9940857105 | H81: 1376783.19 | J81: 0.6402928845 | K81: -1.707709732 | L81: 16.01845546 | M81: 0.9940857105 | N81: 693820.0915 | P81: N/A | Q81: N/A | R81: N/A | S81: N/A | T81: N/A
C82: 42 | D82: 0.6412832002 | E82: -14.35075449 | F82: 17.95166212 | G82: 0.9981356322 | H82: 350028.9874 | J82: 0.6413658428 | K82: -1.738783128 | L82: 15.9841352 | M82: 0.9981356323 | N82: 4.046142947 | P82: N/A | Q82: N/A | R82: N/A | S82: N/A | T82: N/A
C83: 43 | D83: 0.6512340951 | E83: -13.32250484 | F83: 17.83758765 | G83: 0.9963716837 | H83: 1424014.62 | J83: 0.6512134085 | K83: -1.761174259 | L83: 16.10896129 | M83: 0.9963716837 | N83: 478476.3 | P83: N/A | Q83: N/A | R83: N/A | S83: N/A | T83: N/A
C84: 44 | D84: 0.6478582552 | E84: -14.92600301 | F84: 18.04405183 | G84: 0.9957442248 | H84: 3030254.181 | J84: 0.6479717389 | K84: -1.754454105 | L84: 15.98543541 | M84: 0.9957442114 | N84: 6.66218498 | P84: N/A | Q84: N/A | R84: N/A | S84: N/A | T84: N/A
C85: 45 | D85: 0.6456201409 | E85: -14.50094783 | F85: 17.97438117 | G85: 0.9973678751 | J85: 0.6456440869 | K85: -1.745936973 | L85: 15.98708176 | M85: 0.9973678741 | N85: 5.896060686 | P85: N/A | Q85: N/A | R85: N/A | S85: N/A | T85: N/A
C86: 46 | D86: 0.6403667592 | E86: -13.53857633 | F86: 17.85386386 | G86: 0.9965782991 | J86: 0.6409034942 | K86: -1.679806934 | L86: 15.96446062 | M86: 0.9965783015 | N86: 2.477743171 | P86: N/A | Q86: N/A | R86: N/A | S86: N/A | T86: N/A
C87: 47 | D87: 0.6455926376 | E87: -14.54622162 | F87: 17.98163093 | G87: 0.99570704 | H87: 1249799.954 | J87: 0.6459971653 | K87: -1.733757119 | L87: 15.96767544 | M87: 0.9957070416 | N87: 3.046814376 | P87: N/A | Q87: N/A | R87: N/A | S87: N/A | T87: N/A
C88: 48 | D88: 0.6376656169 | E88: -14.4365722 | F88: 17.9651281 | G88: 0.9976088044 | J88: 0.6376527255 | K88: -1.747762126 | L88: 15.99319733 | M88: 0.9976088036 | N88: 10.63158831 | P88: N/A | Q88: N/A | R88: N/A | S88: N/A | T88: N/A
C89: 49 | D89: 0.6393750216 | E89: -13.9055995 | F89: 17.89189862 | G89: 0.9947803009 | J89: 0.6393617919 | K89: -1.732216904 | L89: 16.00493672 | M89: 0.9947803009 | N89: 736077.221 | P89: N/A | Q89: N/A | R89: N/A | S89: N/A | T89: N/A
C90: 50 | D90: 0.6427936968 | E90: -14.05769339 | F90: 17.91056469 | G90: 0.9971052451 | J90: 0.6427839096 | K90: -1.737890192 | L90: 16.0009776 | M90: 0.9971052451 | N90: 609374.8377 | P90: N/A | Q90: N/A | R90: N/A | S90: N/A | T90: N/A
C91: 51 | D91: 0.6496994916 | E91: -14.03439968 | F91: 17.90701311 | G91: 0.9977520033 | H91: 2256232.884 | J91: 0.6496901802 | K91: -1.737292147 | L91: 16.00139047 | M91: 0.9977520033 | P91: N/A | Q91: N/A | R91: N/A | S91: N/A | T91: N/A
C92: 52 | D92: 0.6464753648 | E92: -13.52728148 | F92: 17.85260659 | G92: 0.9962486892 | J92: 0.6474100874 | K92: -1.671383691 | L92: 15.95287086 | M92: 0.9962486963 | N92: 1.970186209 | P92: N/A | Q92: N/A | R92: N/A | S92: N/A | T92: N/A
C93: 53 | D93: 0.6462174463 | E93: -13.92675332 | F93: 17.89393884 | G93: 0.9978880438 | J93: 0.6461961236 | K93: -1.733211801 | L93: 16.00421532 | M93: 0.9978880438 | P93: N/A | Q93: N/A | R93: N/A | S93: N/A | T93: N/A
C94: 54 | D94: 0.6440310266 | E94: -14.02772312 | F94: 17.90661066 | G94: 0.9965373818 | H94: 632860.395 | J94: 0.6440218692 | K94: -1.736886431 | L94: 16.00167076 | M94: 0.9965373818 | N94: 839949.2022 | P94: N/A | Q94: N/A | R94: N/A | S94: N/A | T94: N/A
C95: 55 | D95: 0.6383260947 | E95: -14.15804835 | F95: 17.92432312 | G95: 0.9961438806 | J95: 0.6383138731 | K95: -1.740990692 | L95: 15.99880945 | M95: 0.9961438805 | N95: 76.94033482 | P95: N/A | Q95: N/A | R95: N/A | S95: N/A | T95: N/A
C96: 56 | D96: 0.6439250845 | E96: -13.85999124 | F96: 17.88623893 | G96: 0.9986089299 | H96: 496940.9903 | J96: 0.6439173852 | K96: -1.730479825 | L96: 16.00609107 | M96: 0.9986089299 | P96: N/A | Q96: N/A | R96: N/A | S96: N/A | T96: N/A
C97: 57 | D97: 0.6417601771 | E97: -14.76450472 | F97: 18.01839044 | G97: 0.9970289987 | H97: 558030.9853 | J97: 0.6418204942 | K97: -1.748097074 | L97: 15.98174967 | M97: 0.9970289961 | N97: 4.448877337 | P97: N/A | Q97: N/A | R97: N/A | S97: N/A | T97: N/A
C98: 58 | D98: 0.6444366349 | E98: -13.63102081 | F98: 17.86202501 | G98: 0.995964403 | H98: 1652325.036 | J98: 0.6444343989 | K98: -1.720110918 | L98: 16.01332831 | M98: 0.995964403 | P98: N/A | Q98: N/A | R98: N/A | S98: N/A | T98: N/A
C99: 59 | D99: 0.6396450076 | E99: -13.80235119 | F99: 17.88000799 | G99: 0.9964941694 | H99: 1654185.583 | J99: 0.6396430326 | K99: -1.727964559 | L99: 16.00787164 | M99: 0.9964941694 | P99: N/A | Q99: N/A | R99: N/A | S99: N/A | T99: N/A
C100: 60 | D100: 0.6403701375 | E100: -14.02053153 | F100: 17.90598368 | G100: 0.998124155 | J100: 0.6403613551 | K100: -1.736521945 | L100: 16.00192127 | M100: 0.998124155 | N100: 489759.4311 | P100: N/A | Q100: N/A | R100: N/A | S100: N/A | T100: N/A
C101: 61 | D101: 0.6359808606 | E101: -13.51793971 | F101: 17.852332 | G101: 0.9965197757 | H101: 656173.5904 | J101: 0.6382282483 | K101: -1.651555301 | L101: 15.92426202 | M101: 0.9965197808 | N101: 1.200872484 | P101: N/A | Q101: N/A | R101: N/A | S101: N/A | T101: N/A
C102: 62 | D102: 0.6409255798 | E102: -15.53044974 | F102: 18.12868649 | G102: 0.9971365779 | H102: 572835.567 | J102: 0.6415752821 | K102: -1.752799407 | L102: 15.95606748 | M102: 0.9971365539 | N102: 1.84222842 | P102: N/A | Q102: N/A | R102: N/A | S102: N/A | T102: N/A
C103: 63 | D103: 0.6381429861 | E103: -13.93234951 | F103: 17.89521583 | G103: 0.9947535667 | J103: 0.6380759772 | K103: -1.733210783 | L103: 16.00423745 | M103: 0.9947535667 | N103: 641162.544 | P103: N/A | Q103: N/A | R103: N/A | S103: N/A | T103: N/A
C104: 64 | D104: 0.6380311175 | E104: -13.60077107 | F104: 17.85952792 | G104: 0.9980399785 | J104: 0.6380279407 | K104: -1.718470566 | L104: 16.01450633 | M104: 0.9980399785 | N104: 929753.5033 | P104: N/A | Q104: N/A | R104: N/A | S104: N/A | T104: N/A
C105: 65 | D105: 0.6391801717 | E105: -14.07207345 | F105: 17.91273474 | G105: 0.9987189476 | H105: 1668258.549 | J105: 0.6391700727 | K105: -1.73826038 | L105: 16.00071088 | M105: 0.9987189476 | N105: 243269.9945 | P105: N/A | Q105: N/A | R105: N/A | S105: N/A | T105: N/A
C106: 66 | D106: 0.6351489995 | E106: -15.2027211 | F106: 18.08456866 | G106: 0.9961157136 | J106: 0.6353725667 | K106: -1.754132153 | L106: 15.97332275 | M106: 0.99611571 | N106: 3.499179358 | P106: N/A | Q106: N/A | R106: N/A | S106: N/A | T106: N/A
C107: 67 | D107: 0.6402956847 | E107: -14.26870141 | F107: 17.9396992 | G107: 0.9981858993 | J107: 0.6402972425 | K107: -1.737117284 | L107: 15.98631221 | M107: 0.9981858994 | N107: 4.619929464 | P107: N/A | Q107: N/A | R107: N/A | S107: N/A | T107: N/A
C108: 68 | D108: 0.6569003832 | E108: -13.98876358 | F108: 17.90071457 | G108: 0.998636656 | J108: 0.6568919042 | K108: -1.735862166 | L108: 16.0023878 | M108: 0.998636656 | N108: 581021.9247 | P108: N/A | Q108: N/A | R108: N/A | S108: N/A | T108: N/A
C109: 69 | D109: 0.6405333525 | E109: -13.25954693 | F109: 17.86738819 | G109: 0.9925367663 | J109: 0.640456914 | K109: -1.698907861 | L109: 16.05538488 | M109: 0.9925367663 | N109: 1946789.863 | P109: N/A | Q109: N/A | R109: N/A | S109: N/A | T109: N/A
C110: 70 | D110: 0.6496087765 | E110: -14.20198631 | F110: 17.92937224 | G110: 0.9970958499 | J110: 0.6495952171 | K110: -1.742708005 | L110: 15.99763521 | M110: 0.9970958498 | N110: 33.62351638 | P110: N/A | Q110: N/A | R110: N/A | S110: N/A | T110: N/A
C111: 71 | D111: 0.6394991601 | E111: -14.087559 | F111: 17.91474421 | G111: 0.9989146097 | J111: 0.6394886088 | K111: -1.738785042 | L111: 16.000346 | M111: 0.9989146097 | P111: N/A | Q111: N/A | R111: N/A | S111: N/A | T111: N/A
C112: 72 | D112: 0.6425928253 | E112: -13.76665892 | F112: 17.87592014 | G112: 0.9959115199 | H112: 901312.8303 | J112: 0.6425923689 | K112: -1.726495039 | L112: 16.00894203 | M112: 0.9959115199 | N112: 1030028.995 | P112: N/A | Q112: N/A | R112: N/A | S112: N/A | T112: N/A
C113: 73 | D113: 0.6432791944 | E113: -14.27826305 | F113: 17.94079281 | G113: 0.9965236605 | J113: 0.6433346371 | K113: -1.736222776 | L113: 15.98424011 | M113: 0.9965236608 | N113: 5.566040616 | P113: N/A | Q113: N/A | R113: N/A | S113: N/A | T113: N/A
C114: 74 | D114: 0.6397157901 | E114: -13.73269845 | F114: 17.87248606 | G114: 0.9978633089 | J114: 0.6397139226 | K114: -1.724771003 | L114: 16.01008651 | M114: 0.9978632995 | N114: 389233.158 | P114: N/A | Q114: N/A | R114: N/A | S114: N/A | T114: N/A
C115: 75 | D115: 0.6403900564 | E115: -14.50042526 | F115: 17.97486941 | G115: 0.9976142303 | J115: 0.6403821459 | K115: -1.749623397 | L115: 15.99286214 | M115: 0.997614228 | N115: 10.1228382 | P115: N/A | Q115: N/A | R115: N/A | S115: N/A | T115: N/A
C116: 76 | D116: 0.6418575432 | E116: -13.8909934 | F116: 17.88999348 | G116: 0.9981599066 | H116: 433268.1867 | J116: 0.6418509064 | K116: -1.731706149 | L116: 16.00529388 | M116: 0.9981599066 | P116: N/A | Q116: N/A | R116: N/A | S116: N/A | T116: N/A
C117: 77 | D117: 0.6432640755 | E117: -13.51974303 | F117: 17.85213188 | G117: 0.998000997 | J117: 0.6466664865 | K117: -1.642508061 | L117: 15.90970788 | M117: 0.9980010111 | N117: 0.7693875103 | P117: N/A | Q117: N/A | R117: N/A | S117: N/A | T117: N/A
C118: 78 | D118: 0.6463279401 | E118: -13.68486623 | F118: 17.86713393 | G118: 0.996970134 | J118: 0.6463248692 | K118: -1.722573804 | L118: 16.01136096 | M118: 0.9969701233 | P118: N/A | Q118: N/A | R118: N/A | S118: N/A | T118: N/A
C119: 79 | D119: 0.6399506922 | E119: -14.17445559 | F119: 17.92643288 | G119: 0.9956191543 | H119: 798501.6993 | J119: 0.6436771697 | K119: -1.677805334 | L119: 15.90408876 | M119: 0.9956192007 | N119: 1.077009628 | P119: N/A | Q119: N/A | R119: N/A | S119: N/A | T119: N/A
C120: 80 | D120: 0.6405319616 | E120: -13.94763379 | F120: 17.89688111 | G120: 0.997680809 | J120: 0.64052779 | K120: -1.733863728 | L120: 16.00377707 | M120: 0.997680809 | N120: 1431978.752 | P120: N/A | Q120: N/A | R120: N/A | S120: N/A | T120: N/A
C121: 81 | D121: 0.6341486111 | E121: -13.86089053 | F121: 17.88701141 | G121: 0.9964614446 | H121: 644542.4276 | J121: 0.6341403958 | K121: -1.730279545 | L121: 16.00625969 | M121: 0.9964614446 | N121: 1145423.46 | P121: N/A | Q121: N/A | R121: N/A | S121: N/A | T121: N/A
C122: 82 | D122: 0.6399431288 | E122: -13.90506762 | F122: 17.89179485 | G122: 0.9981483367 | H122: 1218227.653 | J122: 0.6399301092 | K122: -1.732212698 | L122: 16.00494277 | M122: 0.9981483367 | P122: N/A | Q122: N/A | R122: N/A | S122: N/A | T122: N/A
C123: 83 | D123: 0.6502226771 | E123: -13.58950199 | F123: 17.85785451 | G123: 0.9974641264 | J123: 0.6502189409 | K123: -1.718119442 | L123: 16.01473395 | M123: 0.9974641264 | N123: 640098.1867 | P123: N/A | Q123: N/A | R123: N/A | S123: N/A | T123: N/A
C124: 84 | D124: 0.6453014448 | E124: -13.3980586 | F124: 17.84275172 | G124: 0.9970410383 | J124: 0.6452981278 | K124: -1.706040397 | L124: 16.02055723 | M124: 0.9970410383 | P124: N/A | Q124: N/A | R124: N/A | S124: N/A | T124: N/A
C125: 85 | D125: 0.6427754844 | E125: -13.76715659 | F125: 17.87596234 | G125: 0.9978387988 | J125: 0.6427750003 | K125: -1.72650217 | L125: 16.00889585 | M125: 0.9978387988 | P125: N/A | Q125: N/A | R125: N/A | S125: N/A | T125: N/A
C126: 86 | D126: 0.6450729754 | E126: -13.64313916 | F126: 17.86315094 | G126: 0.9972769 | H126: 2533308.029 | J126: 0.6450710356 | K126: -1.720730885 | L126: 16.01290603 | M126: 0.9972769 | N126: 1717363.41 | P126: N/A | Q126: N/A | R126: N/A | S126: N/A | T126: N/A
C127: 87 | D127: 0.6424421604 | E127: -13.95940877 | F127: 17.89818113 | G127: 0.9968627001 | J127: 0.6424352482 | K127: -1.734343244 | L127: 16.00340714 | M127: 0.9968627001 | P127: N/A | Q127: N/A | R127: N/A | S127: N/A | T127: N/A
C128: 88 | D128: 0.6368391718 | E128: -14.78409205 | F128: 18.02227233 | G128: 0.9917928324 | J128: 0.6369817736 | K128: -1.746107948 | L128: 15.97883011 | M128: 0.9917928307 | N128: 6.402476884 | P128: N/A | Q128: N/A | R128: N/A | S128: N/A | T128: N/A
C129: 89 | D129: 0.6441207851 | E129: -14.12300304 | F129: 17.9190686 | G129: 0.9952734578 | J129: 0.6441086445 | K129: -1.740090531 | L129: 15.99944484 | M129: 0.9952734578 | N129: 182.6849237 | P129: N/A | Q129: N/A | R129: N/A | S129: N/A | T129: N/A
C130: 90 | D130: 0.641244563 | E130: -14.61625292 | F130: 17.99354499 | G130: 0.998556225 | H130: 529061.4339 | J130: 0.6412562592 | K130: -1.748533021 | L130: 15.98688029 | M130: 0.9985562228 | N130: 4.297653162 | P130: N/A | Q130: N/A | R130: N/A | S130: N/A | T130: N/A
C131: 91 | D131: 0.642394558 | E131: -13.93139628 | F131: 17.89477981 | G131: 0.9972309733 | J131: 0.6423525618 | K131: -1.733247504 | L131: 16.00411208 | M131: 0.9972309733 | N131: 937078.6566 | P131: N/A | Q131: N/A | R131: N/A | S131: N/A | T131: N/A
C132: 92 | D132: 0.6457936225 | E132: -13.60743249 | F132: 17.85973374 | G132: 0.9959804897 | J132: 0.6457906014 | K132: -1.718947625 | L132: 16.01413979 | M132: 0.9959804897 | P132: N/A | Q132: N/A | R132: N/A | S132: N/A | T132: N/A
C133: 93 | D133: 0.6457152616 | E133: -13.78844637 | F133: 17.87808743 | G133: 0.9975952781 | H133: 1106254.38 | J133: 0.6457141091 | K133: -1.727504866 | L133: 16.00818704 | M133: 0.9975952781 | P133: N/A | Q133: N/A | R133: N/A | S133: N/A | T133: N/A
C134: 94 | D134: 0.6432559862 | E134: -14.42079923 | F134: 17.96209594 | G134: 0.9977752958 | J134: 0.6432293479 | K134: -1.748111445 | L134: 15.99393527 | M134: 0.9977752941 | N134: 11.49653725 | P134: N/A | Q134: N/A | R134: N/A | S134: N/A | T134: N/A
C135: 95 | D135: 0.6406166959 | E135: -15.13614767 | F135: 18.07480137 | G135: 0.997659064 | H135: 1356510.934 | J135: 0.6447057559 | K135: -1.704718857 | L135: 15.90341839 | M135: 0.9976591495 | N135: 0.7813183301 | P135: N/A | Q135: N/A | R135: N/A | S135: N/A | T135: N/A
C136: 96 | D136: 0.6434224742 | E136: -14.11652407 | F136: 17.91826084 | G136: 0.9963716259 | J136: 0.6434108926 | K136: -1.739860465 | L136: 15.99960597 | M136: 0.9963716259 | N136: 225.3700346 | P136: N/A | Q136: N/A | R136: N/A | S136: N/A | T136: N/A
C137: 97 | D137: 0.6451161039 | E137: -13.81705139 | F137: 17.88128753 | G137: 0.9959291942 | H137: 761236.2044 | J137: 0.6451131806 | K137: -1.728722164 | L137: 16.00733288 | M137: 0.9959291942 | P137: N/A | Q137: N/A | R137: N/A | S137: N/A | T137: N/A
C138: 98 | D138: 0.6423133903 | E138: -15.5913382 | F138: 18.13656321 | G138: 0.9975323293 | H138: 432341.2949 | J138: 0.6426359909 | K138: -1.766962725 | L138: 15.97341329 | M138: 0.9975322956 | N138: 2.796412399 | P138: N/A | Q138: N/A | R138: N/A | S138: N/A | T138: N/A
C139: 99 | D139: 0.6352029192 | E139: -13.92601532 | F139: 17.89464973 | G139: 0.994871233 | H139: 1023635.568 | J139: 0.6351771787 | K139: -1.732889102 | L139: 16.00445481 | M139: 0.994871233 | N139: 633735.7709 | P139: N/A | Q139: N/A | R139: N/A | S139: N/A | T139: N/A
C140: 100 | D140: 0.6403198684 | E140: -14.29286815 | F140: 17.9432032 | G140: 0.9978437051 | J140: 0.6445070923 | K140: -1.680974754 | L140: 15.90161415 | M140: 0.9978437974 | N140: 0.7368275038 | P140: N/A | Q140: N/A | R140: N/A | S140: N/A | T140: N/A

Sheet Calculations
C1: This worksheet is used for intermediate calculations. All data will be overwritten
S3: Partial Derivatives | W3: X'X
B4: Point | C4: Input | D4: Output | E4: Fitted Function | F4: Residuals | H4: Simulation Coefficients | I4: Coef 1 | J4: Coef 2 | K4: Coef 3 | S4: Coef 1 | T4: Coef 2 | U4: Coef 3 | W4: =SUMPRODUCT($S$5:$S$84,$S$5:$S$84) -> 80 | X4: =SUMPRODUCT($S$5:$S$84,$T$5:$T$84) -> 416.0514894 | Y4: =SUMPRODUCT($S$5:$S$84,$U$5:$U$84) -> 279.5405454
B5: 1 | C5: 0 | D5: 0.6521940337 | E5: =IF($C$5>K8,I8+J8*(K8-$C$5)^2,I8) -> 0.6445070923 | F5: =$D$5-$E$5 -> 0.007686941445 | I5: 0.642 | J5: -1.74 | K5: 16 | S5: =1 -> 1 | T5: =IF($C$5>K8,(K8-$C$5)^2,0) -> 0 | U5: =IF($C$5>K8,J8*2*(K8-$C$5),0) -> 0 | W5: =SUMPRODUCT($T$5:$T$84,$S$5:$S$84) -> 416.0514894 | X5: =SUMPRODUCT($T$5:$T$84,$T$5:$T$84) -> 10810.62604 | Y5: =SUMPRODUCT($T$5:$T$84,$U$5:$U$84) -> 7128.733701
B6: 2 | C6: 0 | D6: 0.641207292 | E6: =IF($C$6>K8,I8+J8*(K8-$C$6)^2,I8) -> 0.6445070923 | F6: =$D$6-$E$6 -> -0.003299800274 | S6: =1 -> 1 | T6: =IF($C$6>K8,(K8-$C$6)^2,0) -> 0 | U6: =IF($C$6>K8,J8*2*(K8-$C$6),0) -> 0 | W6: =SUMPRODUCT($U$5:$U$84,$S$5:$S$84) -> 279.5405454 | X6: =SUMPRODUCT($U$5:$U$84,$T$5:$T$84) -> 7128.733701 | Y6: =SUMPRODUCT($U$5:$U$84,$U$5:$U$84) -> 4702.507041
B7: 3 | C7: 0 | D7: 0.6474771451 | E7: =IF($C$7>K8,I8+J8*(K8-$C$7)^2,I8) -> 0.6445070923 | F7: =$D$7-$E$7 -> 0.002970052808 | H7: Estimated Coefficients | I7: Coef 1 | J7: Coef 2 | K7: Coef 3 | M7: SSE | N7: R-Squared | S7: =1 -> 1 | T7: =IF($C$7>K8,(K8-$C$7)^2,0) -> 0 | U7: =IF($C$7>K8,J8*2*(K8-$C$7),0) -> 0 | W7: inv(X'X)
B8: 4 | C8: 0 | D8: 0.6636206167 | E8: =IF($C$8>K8,I8+J8*(K8-$C$8)^2,I8) -> 0.6445070923 | F8: =$D$8-$E$8 -> 0.01911352442 | I8: 0.6445070923 | J8: -1.680974754 | K8: 15.90161415 | M8: =SUMPRODUCT($F$5:$F$84,$F$5:$F$84) -> 52.79669478 | N8: =1-$M$8/(SUMPRODUCT($D$5:$D$84,$D$5:$D$84)-COUNT($D$5:$D$84)*AVERAGE($D$5:$D$84)^2) -> 0.9978437974 | S8: =1 -> 1 | T8: =IF($C$8>K8,(K8-$C$8)^2,0) -> 0 | U8: =IF($C$8>K8,J8*2*(K8-$C$8),0) -> 0 | W8: =MINVERSE(W4:Y6) -> 0.02083333333 | X8: 0.04153300983 | Y8: -0.06420012253
B9: 5 | C9: 0 | D9: 0.6541202213 | E9: =IF($C$9>K8,I8+J8*(K8-$C$9)^2,I8) -> 0.6445070923 | F9: =$D$9-$E$9 -> 0.009613129023 | S9: =1 -> 1 | T9: =IF($C$9>K8,(K8-$C$9)^2,0) -> 0 | U9: =IF($C$9>K8,J8*2*(K8-$C$9),0) -> 0 | W9: 0.04153300983 | X9: 0.3411661762 | Y9: -0.5196574841
B10: 6 | C10: 0 | D10: 0.6470450796 | E10: =IF($C$10>K8,I8+J8*(K8-$C$10)^2,I8) -> 0.6445070923 | F10: =$D$10-$E$10 -> 0.002537987289 | H10: Error Analysis | I10: # of Obs, n | J10: # of Regrs, K | K10: sigma | S10: =1 -> 1 | T10: =IF($C$10>K8,(K8-$C$10)^2,0) -> 0 | U10: =IF($C$10>K8,J8*2*(K8-$C$10),0) -> 0 | W10: -0.06420012253 | X10: -0.5196574841 | Y10: 0.7918002726
B11: 7 | C11: 0 | D11: 0.6127609024 | E11: =IF($C$11>K8,I8+J8*(K8-$C$11)^2,I8) -> 0.6445070923 | F11: =$D$11-$E$11 -> -0.03174618989 | I11: 80 | J11: 3 | K11: =SQRT(M8/(I11-J11)) -> 0.8280527524 | L11: *sigma^2 = SSE/(n-K) | S11: =1 -> 1 | T11: =IF($C$11>K8,(K8-$C$11)^2,0) -> 0 | U11: =IF($C$11>K8,J8*2*(K8-$C$11),0) -> 0
B12: 8 | C12: 0 | D12: 0.6559808206 | E12: =IF($C$12>K8,I8+J8*(K8-$C$12)^2,I8) -> 0.6445070923 | F12: =$D$12-$E$12 -> 0.01147372831 | S12: =1 -> 1 | T12: =IF($C$12>K8,(K8-$C$12)^2,0) -> 0 | U12: =IF($C$12>K8,J8*2*(K8-$C$12),0) -> 0
B13: 9 | C13: 0 | D13: 0.6772428886 | E13: =IF($C$13>K8,I8+J8*(K8-$C$13)^2,I8) -> 0.6445070923 | F13: =$D$13-$E$13 -> 0.03273579631 | H13: Standard Errors | I13: Coef 1 | J13: Coef 2 | K13: Coef 3 | S13: =1 -> 1 | T13: =IF($C$13>K8,(K8-$C$13)^2,0) -> 0 | U13: =IF($C$13>K8,J8*2*(K8-$C$13),0) -> 0
B14: 10 | C14: 0 | D14: 0.6196867751 | E14: =IF($C$14>K8,I8+J8*(K8-$C$14)^2,I8) -> 0.6445070923 | F14: =$D$14-$E$14 -> -0.02482031713 | I14: =SQRT(W8)*$K$11 -> 0.1195191199 | J14: =SQRT(X9)*$K$11 -> 0.4836609105 | K14: =SQRT(Y10)*$K$11 -> 0.7368275038 | S14: =1 -> 1 | T14: =IF($C$14>K8,(K8-$C$14)^2,0) -> 0 | U14: =IF($C$14>K8,J8*2*(K8-$C$14),0) -> 0
B15: 11 | C15: 0 | D15: 0.6333797971 | E15: =IF($C$15>K8,I8+J8*(K8-$C$15)^2,I8) -> 0.6445070923 | F15: =$D$15-$E$15 -> -0.01112729522 | S15: =1 -> 1 | T15: =IF($C$15>K8,(K8-$C$15)^2,0) -> 0 | U15: =IF($C$15>K8,J8*2*(K8-$C$15),0) -> 0
B16: 12 | C16: 0 | D16: 0.6429031207 | E16: =IF($C$16>K8,I8+J8*(K8-$C$16)^2,I8) -> 0.6445070923 | F16: =$D$16-$E$16 -> -0.001603971618 | S16: =1 -> 1 | T16: =IF($C$16>K8,(K8-$C$16)^2,0) -> 0 | U16: =IF($C$16>K8,J8*2*(K8-$C$16),0) -> 0
B17: 13 | C17: 0 | D17: 0.6073773038 | E17: =IF($C$17>K8,I8+J8*(K8-$C$17)^2,I8) -> 0.6445070923 | F17: =$D$17-$E$17 -> -0.03712978844 | S17: =1 -> 1 | T17: =IF($C$17>K8,(K8-$C$17)^2,0) -> 0 | U17: =IF($C$17>K8,J8*2*(K8-$C$17),0) -> 0
B18: 14 | C18: 0 | D18: 0.6202653195 | E18: =IF($C$18>K8,I8+J8*(K8-$C$18)^2,I8) -> 0.6445070923 | F18: =$D$18-$E$18 -> -0.02424177282 | S18: =1 -> 1 | T18: =IF($C$18>K8,(K8-$C$18)^2,0) -> 0 | U18: =IF($C$18>K8,J8*2*(K8-$C$18),0) -> 0
B19: 15 | C19: 0 | D19: 0.6045192476 | E19: =IF($C$19>K8,I8+J8*(K8-$C$19)^2,I8) -> 0.6445070923 | F19: =$D$19-$E$19 -> -0.03998784471 | S19: =1 -> 1 | T19: =IF($C$19>K8,(K8-$C$19)^2,0) -> 0 | U19: =IF($C$19>K8,J8*2*(K8-$C$19),0) -> 0
B20: 16 | C20: 0 | D20: 0.629288536 | E20: =IF($C$20>K8,I8+J8*(K8-$C$20)^2,I8) -> 0.6445070923 | F20: =$D$20-$E$20 -> -0.01521855626 | S20: =1 -> 1 | T20: =IF($C$20>K8,(K8-$C$20)^2,0) -> 0 | U20: =IF($C$20>K8,J8*2*(K8-$C$20),0) -> 0
B21: 17 | C21: 6 | D21: 0.6733148683 | E21: =IF($C$21>K8,I8+J8*(K8-$C$21)^2,I8) -> 0.6445070923 | F21: =$D$21-$E$21 -> 0.02880777607 | S21: =1 -> 1 | T21: =IF($C$21>K8,(K8-$C$21)^2,0) -> 0 | U21: =IF($C$21>K8,J8*2*(K8-$C$21),0) -> 0
B22: 18 | C22: 6 | D22: 0.6708827129 | E22: =IF($C$22>K8,I8+J8*(K8-$C$22)^2,I8) -> 0.6445070923 | F22: =$D$22-$E$22 -> 0.02637562066 | S22: =1 -> 1 | T22: =IF($C$22>K8,(K8-$C$22)^2,0) -> 0 | U22: =IF($C$22>K8,J8*2*(K8-$C$22),0) -> 0
B23: 19 | C23: 6 | D23: 0.6603790441 | E23: =IF($C$23>K8,I8+J8*(K8-$C$23)^2,I8) -> 0.6445070923 | F23: =$D$23-$E$23 -> 0.01587195177 | S23: =1 -> 1 | T23: =IF($C$23>K8,(K8-$C$23)^2,0) -> 0 | U23: =IF($C$23>K8,J8*2*(K8-$C$23),0) -> 0
B24: 20 | C24: 6 | D24: 0.688302462 | E24: =IF($C$24>K8,I8+J8*(K8-$C$24)^2,I8) -> 0.6445070923 | F24: =$D$24-$E$24 -> 0.04379536972 | S24: =1 -> 1 | T24: =IF($C$24>K8,(K8-$C$24)^2,0) -> 0 | U24: =IF($C$24>K8,J8*2*(K8-$C$24),0) -> 0
B25: 21 | C25: 6 | D25: 0.6207287991 | E25: =IF($C$25>K8,I8+J8*(K8-$C$25)^2,I8) -> 0.6445070923 | F25: =$D$25-$E$25 -> -0.02377829316 | S25: =1 -> 1 | T25: =IF($C$25>K8,(K8-$C$25)^2,0) -> 0 | U25: =IF($C$25>K8,J8*2*(K8-$C$25),0) -> 0
B26: 22 | C26: 6 | D26: 0.6288589618 | E26: =IF($C$26>K8,I8+J8*(K8-$C$26)^2,I8) -> 0.6445070923 | F26: =$D$26-$E$26 -> -0.01564813045 | S26: =1 -> 1 | T26: =IF($C$26>K8,(K8-$C$26)^2,0) -> 0 | U26: =IF($C$26>K8,J8*2*(K8-$C$26),0) -> 0
B27: 23 | C27: 6 | D27: 0.5889558012 | E27: =IF($C$27>K8,I8+J8*(K8-$C$27)^2,I8) -> 0.6445070923 | F27: =$D$27-$E$27 -> -0.05555129104 | S27: =1 -> 1 | T27: =IF($C$27>K8,(K8-$C$27)^2,0) -> 0 | U27: =IF($C$27>K8,J8*2*(K8-$C$27),0) -> 0
B28: 24 | C28: 6 | D28: 0.6381278142 | E28: =IF($C$28>K8,I8+J8*(K8-$C$28)^2,I8) -> 0.6445070923 | F28: =$D$28-$E$28 -> -0.006379278089 | S28: =1 -> 1 | T28: =IF($C$28>K8,(K8-$C$28)^2,0) -> 0 | U28: =IF($C$28>K8,J8*2*(K8-$C$28),0) -> 0
B29: 25 | C29: 6 | D29: 0.6296362617 | E29: =IF($C$29>K8,I8+J8*(K8-$C$29)^2,I8) -> 0.6445070923 | F29: =$D$29-$E$29 -> -0.01487083061 | S29: =1 -> 1 | T29: =IF($C$29>K8,(K8-$C$29)^2,0) -> 0 | U29: =IF($C$29>K8,J8*2*(K8-$C$29),0) -> 0
B30: 26 | C30: 6 | D30: 0.6227356717 | E30: =IF($C$30>K8,I8+J8*(K8-$C$30)^2,I8) -> 0.6445070923 | F30: =$D$30-$E$30 -> -0.0217714206 | S30: =1 -> 1 | T30: =IF($C$30>K8,(K8-$C$30)^2,0) -> 0 | U30: =IF($C$30>K8,J8*2*(K8-$C$30),0) -> 0
B31: 27 | C31: 6 | D31: 0.6731679438 | E31: =IF($C$31>K8,I8+J8*(K8-$C$31)^2,I8) -> 0.6445070923 | F31: =$D$31-$E$31 -> 0.02866085156 | S31: =1 -> 1 | T31: =IF($C$31>K8,(K8-$C$31)^2,0) -> 0 | U31: =IF($C$31>K8,J8*2*(K8-$C$31),0) -> 0
B32: 28 | C32: 6 | D32: 0.6496609784 | E32: =IF($C$32>K8,I8+J8*(K8-$C$32)^2,I8) -> 0.6445070923 | F32: =$D$32-$E$32 -> 0.005153886136 | S32: =1 -> 1 | T32: =IF($C$32>K8,(K8-$C$32)^2,0) -> 0 | U32: =IF($C$32>K8,J8*2*(K8-$C$32),0) -> 0
B33: 29 | C33: 6 | D33: 0.657116127 | E33: =IF($C$33>K8,I8+J8*(K8-$C$33)^2,I8) -> 0.6445070923 | F33: =$D$33-$E$33 -> 0.0126090347 | S33: =1 -> 1 | T33: =IF($C$33>K8,(K8-$C$33)^2,0) -> 0 | U33: =IF($C$33>K8,J8*2*(K8-$C$33),0) -> 0
B34: 30 | C34: 6 | D34: 0.6210282638 | E34: =IF($C$34>K8,I8+J8*(K8-$C$34)^2,I8) -> 0.6445070923 | F34: =$D$34-$E$34 -> -0.02347882843 | S34: =1 -> 1 | T34: =IF($C$34>K8,(K8-$C$34)^2,0) -> 0 | U34: =IF($C$34>K8,J8*2*(K8-$C$34),0) -> 0
B35: 31 | C35: 6 | D35: 0.6160058219 | E35: =IF($C$35>K8,I8+J8*(K8-$C$35)^2,I8) -> 0.6445070923 | F35: =$D$35-$E$35 -> -0.0285012704 | S35: =1 -> 1 | T35: =IF($C$35>K8,(K8-$C$35)^2,0) -> 0 | U35: =IF($C$35>K8,J8*2*(K8-$C$35),0) -> 0
B36: 32 | C36: 6 | D36: 0.6638884083 | E36: =IF($C$36>K8,I8+J8*(K8-$C$36)^2,I8) -> 0.6445070923 | F36: =$D$36-$E$36 -> 0.01938131605 | S36: =1 -> 1 | T36: =IF($C$36>K8,(K8-$C$36)^2,0) -> 0 | U36: =IF($C$36>K8,J8*2*(K8-$C$36),0) -> 0
B37: 33 | C37: 11 | D37: 0.6509369286 | E37: =IF($C$37>K8,I8+J8*(K8-$C$37)^2,I8) -> 0.6445070923 | F37: =$D$37-$E$37 -> 0.006429836323 | S37: =1 -> 1 | T37: =IF($C$37>K8,(K8-$C$37)^2,0) -> 0 | U37: =IF($C$37>K8,J8*2*(K8-$C$37),0) -> 0
B38: 34 | C38: 11 | D38: 0.6430862128 | E38: =IF($C$38>K8,I8+J8*(K8-$C$38)^2,I8) -> 0.6445070923 | F38: =$D$38-$E$38 -> -0.001420879453 | S38: =1 -> 1 | T38: =IF($C$38>K8,(K8-$C$38)^2,0) -> 0 | U38: =IF($C$38>K8,J8*2*(K8-$C$38),0) -> 0
B39: 35 | C39: 11 | D39: 0.6470212645 | E39: =IF($C$39>K8,I8+J8*(K8-$C$39)^2,I8) -> 0.6445070923 | F39: =$D$39-$E$39 -> 0.002514172173 | S39: =1 -> 1 | T39: =IF($C$39>K8,(K8-$C$39)^2,0) -> 0 | U39: =IF($C$39>K8,J8*2*(K8-$C$39),0) -> 0
B40: 36 | C40: 11 | D40: 0.6479159418 | E40: =IF($C$40>K8,I8+J8*(K8-$C$40)^2,I8) -> 0.6445070923 | F40: =$D$40-$E$40 -> 0.003408849508 | S40: =1 -> 1 | T40: =IF($C$40>K8,(K8-$C$40)^2,0) -> 0 | U40: =IF($C$40>K8,J8*2*(K8-$C$40),0) -> 0
B41: 37 | C41: 11 | D41: 0.6643604956 | E41: =IF($C$41>K8,I8+J8*(K8-$C$41)^2,I8) -> 0.6445070923 | F41: =$D$41-$E$41 -> 0.01985340334 | S41: =1 -> 1 | T41: =IF($C$41>K8,(K8-$C$41)^2,0) -> 0 | U41: =IF($C$41>K8,J8*2*(K8-$C$41),0) -> 0
B42: 38 | C42: 11 | D42: 0.6414111676 | E42: =IF($C$42>K8,I8+J8*(K8-$C$42)^2,I8) -> 0.6445070923 | F42: =$D$42-$E$42 -> -0.003095924657 | S42: =1 -> 1 | T42: =IF($C$42>K8,(K8-$C$42)^2,0) -> 0 | U42: =IF($C$42>K8,J8*2*(K8-$C$42),0) -> 0
B43: 39 | C43: 11 | D43: 0.6510638592 | E43: =IF($C$43>K8,I8+J8*(K8-$C$43)^2,I8) -> 0.6445070923 | F43: =$D$43-$E$43 -> 0.006556766879 | S43: =1 -> 1 | T43: =IF($C$43>K8,(K8-$C$43)^2,0) -> 0 | U43: =IF($C$43>K8,J8*2*(K8-$C$43),0) -> 0
B44: 40 | C44: 11 | D44: 0.6603617064 | E44: =IF($C$44>K8,I8+J8*(K8-$C$44)^2,I8) -> 0.6445070923 | F44: =$D$44-$E$44 -> 0.01585461413 | S44: =1 -> 1 | T44: =IF($C$44>K8,(K8-$C$44)^2,0) -> 0 | U44: =IF($C$44>K8,J8*2*(K8-$C$44),0) -> 0
B45: 41 | C45: 11 | D45: 0.6594285924 | E45: =IF($C$45>K8,I8+J8*(K8-$C$45)^2,I8) -> 0.6445070923 | F45: =$D$45-$E$45 -> 0.01492150016 | S45: =1 -> 1 | T45: =IF($C$45>K8,(K8-$C$45)^2,0) -> 0 | U45: =IF($C$45>K8,J8*2*(K8-$C$45),0) -> 0
B46: 42 | C46: 11 | D46: 0.6643523479 | E46: =IF($C$46>K8,I8+J8*(K8-$C$46)^2,I8) -> 0.6445070923 | F46: =$D$46-$E$46 -> 0.01984525565 | S46: =1 -> 1 | T46: =IF($C$46>K8,(K8-$C$46)^2,0) -> 0 | U46: =IF($C$46>K8,J8*2*(K8-$C$46),0) -> 0
B47: 43 | C47: 11 | D47: 0.6617584306 | E47: =IF($C$47>K8,I8+J8*(K8-$C$47)^2,I8) -> 0.6445070923 | F47: =$D$47-$E$47 -> 0.01725133832 | S47: =1 -> 1 | T47: =IF($C$47>K8,(K8-$C$47)^2,0) -> 0 | U47: =IF($C$47>K8,J8*2*(K8-$C$47),0) -> 0
B48: 44 | C48: 11 | D48: 0.6781717213 | E48: =IF($C$48>K8,I8+J8*(K8-$C$48)^2,I8) -> 0.6445070923 | F48: =$D$48-$E$48 -> 0.03366462897 | S48: =1 -> 1 | T48: =IF($C$48>K8,(K8-$C$48)^2,0) -> 0 | U48: =IF($C$48>K8,J8*2*(K8-$C$48),0) -> 0
B49: 45 | C49: 11 | D49: 0.6968828527 | E49: =IF($C$49>K8,I8+J8*(K8-$C$49)^2,I8) -> 0.6445070923 | F49: =$D$49-$E$49 -> 0.05237576038 | S49: =1 -> 1 | T49: =IF($C$49>K8,(K8-$C$49)^2,0) -> 0 | U49: =IF($C$49>K8,J8*2*(K8-$C$49),0) -> 0
B50: 46 | C50: 11 | D50: 0.6048491249 | E50: =IF($C$50>K8,I8+J8*(K8-$C$50)^2,I8) -> 0.6445070923 | F50: =$D$50-$E$50 -> -0.03965796736 | S50: =1 -> 1 | T50: =IF($C$50>K8,(K8-$C$50)^2,0) -> 0 | U50: =IF($C$50>K8,J8*2*(K8-$C$50),0) -> 0
B51: 47 | C51: 11 | D51: 0.6445378261 | E51: =IF($C$51>K8,I8+J8*(K8-$C$51)^2,I8) -> 0.6445070923 | F51: =$D$51-$E$51 -> 3.073382509e-05 | S51: =1 -> 1 | T51: =IF($C$51>K8,(K8-$C$51)^2,0) -> 0 | U51: =IF($C$51>K8,J8*2*(K8-$C$51),0) -> 0
B52: 48 | C52: 11 | D52: 0.5734498474 | E52: =IF($C$52>K8,I8+J8*(K8-$C$52)^2,I8) -> 0.6445070923 | F52: =$D$52-$E$52 -> -0.07105724488 | S52: =1 -> 1 | T52: =IF($C$52>K8,(K8-$C$52)^2,0) -> 0 | U52: =IF($C$52>K8,J8*2*(K8-$C$52),0) -> 0
B53: 49 | C53: 16 | D53: 0.6048021327 | E53: =IF($C$53>K8,I8+J8*(K8-$C$53)^2,I8) -> 0.6282356329 | F53: =$D$53-$E$53 -> -0.02343350027 | S53: =1 -> 1 | T53: =IF($C$53>K8,(K8-$C$53)^2,0) -> 0.009679776161 | U53: =IF($C$53>K8,J8*2*(K8-$C$53),0) -> 0.3307682717
B54: 50 | C54: 16 | D54: 0.5908869774 | E54: =IF($C$54>K8,I8+J8*(K8-$C$54)^2,I8) -> 0.6282356329 | F54: =$D$54-$E$54 -> -0.0373486555 | S54: =1 -> 1 | T54: =IF($C$54>K8,(K8-$C$54)^2,0) -> 0.009679776161 | U54: =IF($C$54>K8,J8*2*(K8-$C$54),0) -> 0.3307682717
B55: 51 | C55: 16 | D55: 0.6576122307 | E55: =IF($C$55>K8,I8+J8*(K8-$C$55)^2,I8) -> 0.6282356329 | F55: =$D$55-$E$55 -> 0.02937659779 | S55: =1 -> 1 | T55: =IF($C$55>K8,(K8-$C$55)^2,0) -> 0.009679776161 | U55: =IF($C$55>K8,J8*2*(K8-$C$55),0) -> 0.3307682717
B56: 52 | C56: 16 | D56: 0.6937984796 | E56: =IF($C$56>K8,I8+J8*(K8-$C$56)^2,I8) -> 0.6282356329 | F56: =$D$56-$E$56 -> 0.06556284663 | S56: =1 -> 1 | T56: =IF($C$56>K8,(K8-$C$56)^2,0) -> 0.009679776161 | U56: =IF($C$56>K8,J8*2*(K8-$C$56),0) -> 0.3307682717
B57: 53 | C57: 16 | D57: 0.6334506277 | E57: =IF($C$57>K8,I8+J8*(K8-$C$57)^2,I8) -> 0.6282356329 | F57: =$D$57-$E$57 -> 0.005214994778 | S57: =1 -> 1 | T57: =IF($C$57>K8,(K8-$C$57)^2,0) -> 0.009679776161 | U57: =IF($C$57>K8,J8*2*(K8-$C$57),0) -> 0.3307682717
B58: 54 | C58: 16 | D58: 0.6253744515 | E58: =IF($C$58>K8,I8+J8*(K8-$C$58)^2,I8) -> 0.6282356329 | F58: =$D$58-$E$58 -> -0.002861181415 | S58: =1 -> 1 | T58: =IF($C$58>K8,(K8-$C$58)^2,0) -> 0.009679776161 | U58: =IF($C$58>K8,J8*2*(K8-$C$58),0) -> 0.3307682717
B59: 55 | C59: 16 | D59: 0.5690815487 | E59: =IF($C$59>K8,I8+J8*(K8-$C$59)^2,I8) -> 0.6282356329 | F59: =$D$59-$E$59 -> -0.05915408424 | S59: =1 -> 1 | T59: =IF($C$59>K8,(K8-$C$59)^2,0) -> 0.009679776161 | U59: =IF($C$59>K8,J8*2*(K8-$C$59),0) -> 0.3307682717
B60: 56 | C60: 16 | D60: 0.5805938789 | E60: =IF($C$60>K8,I8+J8*(K8-$C$60)^2,I8) -> 0.6282356329 | F60: =$D$60-$E$60 -> -0.04764175403 | S60: =1 -> 1 | T60: =IF($C$60>K8,(K8-$C$60)^2,0) -> 0.009679776161 | U60: =IF($C$60>K8,J8*2*(K8-$C$60),0) -> 0.3307682717
B61: 57 | C61: 16 | D61: 0.6186760638 | E61: =IF($C$61>K8,I8+J8*(K8-$C$61)^2,I8) -> 0.6282356329 | F61: =$D$61-$E$61 -> -0.009559569157 | S61: =1 -> 1 | T61: =IF($C$61>K8,(K8-$C$61)^2,0) -> 0.009679776161 | U61: =IF($C$61>K8,J8*2*(K8-$C$61),0) -> 0.3307682717
B62: 58 | C62: 16 | D62: 0.6677964755 | E62: =IF($C$62>K8,I8+J8*(K8-$C$62)^2,I8) -> 0.6282356329 | F62: =$D$62-$E$62 -> 0.03956084254 | S62: =1 -> 1 | T62: =IF($C$62>K8,(K8-$C$62)^2,0) -> 0.009679776161 | U62: =IF($C$62>K8,J8*2*(K8-$C$62),0) -> 0.3307682717
B63: 59 | C63: 16 | D63: 0.6680213342 | E63: =IF($C$63>K8,I8+J8*(K8-$C$63)^2,I8) -> 0.6282356329 | F63: =$D$63-$E$63 -> 0.03978570125 | S63: =1 -> 1 | T63: =IF($C$63>K8,(K8-$C$63)^2,0) -> 0.009679776161 | U63: =IF($C$63>K8,J8*2*(K8-$C$63),0) -> 0.3307682717
B64: 60 | C64: 16 | D64: 0.6169375006 | E64: =IF($C$64>K8,I8+J8*(K8-$C$64)^2,I8) -> 0.6282356329 | F64: =$D$64-$E$64 -> -0.01129813236 | S64: =1 -> 1 | T64: =IF($C$64>K8,(K8-$C$64)^2,0) -> 0.009679776161 | U64: =IF($C$64>K8,J8*2*(K8-$C$64),0) -> 0.3307682717
B65: 61 | C65: 16 | D65: 0.6278129802 | E65: =IF($C$65>K8,I8+J8*(K8-$C$65)^2,I8) -> 0.6282356329 | F65: =$D$65-$E$65 -> -0.0004226527452 | S65: =1 -> 1 | T65: =IF($C$65>K8,(K8-$C$65)^2,0) -> 0.009679776161 | U65: =IF($C$65>K8,J8*2*(K8-$C$65),0) -> 0.3307682717
B66: 62 | C66: 16 | D66: 0.6646418561 | E66: =IF($C$66>K8,I8+J8*(K8-$C$66)^2,I8) -> 0.6282356329 | F66: =$D$66-$E$66 -> 0.03640622315 | S66: =1 -> 1 | T66: =IF($C$66>K8,(K8-$C$66)^2,0) -> 0.009679776161 | U66: =IF($C$66>K8,J8*2*(K8-$C$66),0) -> 0.3307682717
B67: 63 | C67: 16 | D67: 0.6303594788 | E67: =IF($C$67>K8,I8+J8*(K8-$C$67)^2,I8) -> 0.6282356329 | F67: =$D$67-$E$67 -> 0.002123845829 | S67: =1 -> 1 | T67: =IF($C$67>K8,(K8-$C$67)^2,0) -> 0.009679776161 | U67: =IF($C$67>K8,J8*2*(K8-$C$67),0) -> 0.3307682717
B68: 64 | C68: 16 | D68: 0.6278352339 | E68: =IF($C$68>K8,I8+J8*(K8-$C$68)^2,I8) -> 0.6282356329 | F68: =$D$68-$E$68 -> -0.0004003989958 | S68: =1 -> 1 | T68: =IF($C$68>K8,(K8-$C$68)^2,0) -> 0.009679776161 | U68: =IF($C$68>K8,J8*2*(K8-$C$68),0) -> 0.3307682717
B69: 65 | C69: 21 | D69: -44.67672719 | E69: =IF($C$69>K8,I8+J8*(K8-$C$69)^2,I8) -> -43.04997459 | F69: =$D$69-$E$69 -> -1.6267526 | S69: =1 -> 1 | T69: =IF($C$69>K8,(K8-$C$69)^2,0) -> 25.99353831 | U69: =IF($C$69>K8,J8*2*(K8-$C$69),0) -> 17.14051582
B70: 66 | C70: 21 | D70: -40.7707326 | E70: =IF($C$70>K8,I8+J8*(K8-$C$70)^2,I8) -> -43.04997459 | F70: =$D$70-$E$70 -> 2.279241982 | S70: =1 -> 1 | T70: =IF($C$70>K8,(K8-$C$70)^2,0) -> 25.99353831 | U70: =IF($C$70>K8,J8*2*(K8-$C$70),0) -> 17.14051582
B71: 67 | C71: 21 | D71: -45.89861102 | E71: =IF($C$71>K8,I8+J8*(K8-$C$71)^2,I8) -> -43.04997459 | F71: =$D$71-$E$71 -> -2.848636436 | S71: =1 -> 1 | T71: =IF($C$71>K8,(K8-$C$71)^2,0) -> 25.99353831 | U71: =IF($C$71>K8,J8*2*(K8-$C$71),0) -> 17.14051582
B72: 68 | C72: 21 | D72: -43.12774672 | E72: =IF($C$72>K8,I8+J8*(K8-$C$72)^2,I8) -> -43.04997459 | F72: =$D$72-$E$72 -> -0.07777213342 | S72: =1 -> 1 | T72: =IF($C$72>K8,(K8-$C$72)^2,0) -> 25.99353831 | U72: =IF($C$72>K8,J8*2*(K8-$C$72),0) -> 17.14051582
B73: 69 | C73: 21 | D73: -43.71921766 | E73: =IF($C$73>K8,I8+J8*(K8-$C$73)^2,I8) -> -43.04997459 | F73: =$D$73-$E$73 -> -0.669243073 | S73: =1 -> 1 | T73: =IF($C$73>K8,(K8-$C$73)^2,0) -> 25.99353831 | U73: =IF($C$73>K8,J8*2*(K8-$C$73),0) -> 17.14051582
B74: 70 | C74: 21 | D74: -41.76497056 | E74: =IF($C$74>K8,I8+J8*(K8-$C$74)^2,I8) -> -43.04997459 | F74: =$D$74-$E$74 -> 1.285004026 | S74: =1 -> 1 | T74: =IF($C$74>K8,(K8-$C$74)^2,0) -> 25.99353831 | U74: =IF($C$74>K8,J8*2*(K8-$C$74),0) -> 17.14051582
B75: 71 | C75: 21 | D75: -43.65435663 | E75: =IF($C$75>K8,I8+J8*(K8-$C$75)^2,I8) -> -43.04997459 | F75: =$D$75-$E$75 -> -0.6043820431 | S75: =1 -> 1 | T75: =IF($C$75>K8,(K8-$C$75)^2,0) -> 25.99353831 | U75: =IF($C$75>K8,J8*2*(K8-$C$75),0) -> 17.14051582
B76: 72 | C76: 21 | D76: -41.07731086 | E76: =IF($C$76>K8,I8+J8*(K8-$C$76)^2,I8) -> -43.04997459 | F76: =$D$76-$E$76 -> 1.972663728 | S76: =1 -> 1 | T76: =IF($C$76>K8,(K8-$C$76)^2,0) -> 25.99353831 | U76: =IF($C$76>K8,J8*2*(K8-$C$76),0) -> 17.14051582
B77: 73 | C77: 21 | D77: -42.76554746 | E77: =IF($C$77>K8,I8+J8*(K8-$C$77)^2,I8) -> -43.04997459 | F77: =$D$77-$E$77 -> 0.2844271252 | S77: =1 -> 1 | T77: =IF($C$77>K8,(K8-$C$77)^2,0) -> 25.99353831 | U77: =IF($C$77>K8,J8*2*(K8-$C$77),0) -> 17.14051582
B78: 74 | C78: 21 | D78: -44.09918663 | E78: =IF($C$78>K8,I8+J8*(K8-$C$78)^2,I8) -> -43.04997459 | F78: =$D$78-$E$78 -> -1.049212048 | S78: =1 -> 1 | T78: =IF($C$78>K8,(K8-$C$78)^2,0) -> 25.99353831 | U78: =IF($C$78>K8,J8*2*(K8-$C$78),0) -> 17.14051582
B79: 75 | C79: 21 | D79: -46.95963193 | E79: =IF($C$79>K8,I8+J8*(K8-$C$79)^2,I8) -> -43.04997459 | F79: =$D$79-$E$79 -> -3.909657342 | S79: =1 -> 1 | T79: =IF($C$79>K8,(K8-$C$79)^2,0) -> 25.99353831 | U79: =IF($C$79>K8,J8*2*(K8-$C$79),0) -> 17.14051582
B80: 76 | C80: 21 | D80: -44.40861611 | E80: =IF($C$80>K8,I8+J8*(K8-$C$80)^2,I8) -> -43.04997459 | F80: =$D$80-$E$80 -> -1.358641528 | S80: =1 -> 1 | T80: =IF($C$80>K8,(K8-$C$80)^2,0) -> 25.99353831 | U80: =IF($C$80>K8,J8*2*(K8-$C$80),0) -> 17.14051582
B81: 77 | C81: 21 | D81: -42.3878561 | E81: =IF($C$81>K8,I8+J8*(K8-$C$81)^2,I8) -> -43.04997459 | F81: =$D$81-$E$81 -> 0.6621184837 | S81: =1 -> 1 | T81: =IF($C$81>K8,(K8-$C$81)^2,0) -> 25.99353831 | U81: =IF($C$81>K8,J8*2*(K8-$C$81),0) -> 17.14051582
B82: 78 | C82: 21 | D82: -41.88771172 | E82: =IF($C$82>K8,I8+J8*(K8-$C$82)^2,I8) -> -43.04997459 | F82: =$D$82-$E$82 -> 1.162262865 | S82: =1 -> 1 | T82: =IF($C$82>K8,(K8-$C$82)^2,0) -> 25.99353831 | U82: =IF($C$82>K8,J8*2*(K8-$C$82),0) -> 17.14051582
B83: 79 | C83: 21 | D83: -41.12514412 | E83: =IF($C$83>K8,I8+J8*(K8-$C$83)^2,I8) -> -43.04997459 | F83: =$D$83-$E$83 -> 1.924830471 | S83: =1 -> 1 | T83: =IF($C$83>K8,(K8-$C$83)^2,0) -> 25.99353831 | U83: =IF($C$83>K8,J8*2*(K8-$C$83),0) -> 17.14051582
B84: 80 | C84: 21 | D84: -40.47637774 | E84: =IF($C$84>K8,I8+J8*(K8-$C$84)^2,I8) -> -43.04997459 | F84: =$D$84-$E$84 -> 2.573596852 | S84: =1 -> 1 | T84: =IF($C$84>K8,(K8-$C$84)^2,0) -> 25.99353831 | U84: =IF($C$84>K8,J8*2*(K8-$C$84),0) -> 17.14051582
